bitfinex/quotes_SOLUSD_20240827
["timestamp","ask_amount","ask_price","bid_price","bid_amount"]
[1724765778262,0.86268152,155.04,154.96,0.12549]
[1724765778574,20.86268152,155.05,154.96,45.50196]
[1724765778780,0.86268152,155.04,154.98,0.12549]
[1724765778986,0.86268152,155.04,154.98,46.79217333]
[1724765779371,0.86268152,155.05,154.98,46.79217333]
[1724765780090,0.86268152,155.09,155.0,0.12549]
[1724765780257,0.86268152,155.09,155.0,45.50196]
[1724765780560,0.86268152,155.09,154.99,20.0]
[1724765780760,6.4499,155.04,154.92,6.3551]
[1724765780964,7.31308152,155.03,154.93,21.29039624]
[1724765781165,0.86268152,155.02,154.93,21.29039624]
[1724765781370,0.86268152,155.04,154.93,21.29039624]
[1724765781562,0.86268152,155.04,154.93,20.0]
[1724765781765,15.2556,155.03,154.93,21.61601355]
[1724765781971,0.86268152,155.02,154.93,21.61601355]
[1724765782296,0.86268152,155.01,154.93,20.0]
[1724765782484,0.86268152,155.01,154.94,1.29053431]
[1724765782779,0.86268152,155.01,154.92,6.3551]
[1724765783183,0.86268152,155.01,154.93,1.2906296]
[1724765783359,0.86268152,155.01,154.92,6.3551]
[1724765783778,7.31388152,155.01,154.92,6.3551]
[1724765783981,0.86268152,155.01,154.94,0.12549]
[1724765784187,0.86268152,155.02,154.94,0.37647]
[1724765784368,0.86268152,155.01,154.95,0.12549]
[1724765784684,0.86268152,155.01,154.96,0.12549]
[1724765784872,0.86268152,155.02,154.96,0.25098]
[1724765785183,0.86268152,155.02,154.97,0.25098]
[1724765785695,0.86268152,155.02,154.98,0.12549]
[1724765785868,0.86268152,155.05,154.98,1.54119083]
[1724765786064,0.86268152,155.04,154.99,0.25098]
[1724765786270,0.86268152,155.05,155.0,0.12549]
[1724765786475,0.86268152,155.08,155.0,49.52854269]
[1724765786674,0.86268152,155.09,155.02,0.12549]
[1724765786975,7.31088152,155.09,155.01,65.25098]
[1724765787287,6.4498,155.05,154.94,47.98747028]
[1724765787479,0.86268152,155.04,154.95,69.44960432]
[1724765787666,7.31138152,155.07,154.96,1.61572369]
[1724765787985,7.31138152,155.07,154.97,1.54109114]
[1724765788163,0.86268152,155.07,154.97,49.52856142]
[1724765788362,1.12344084,155.08,154.98,66.61549168]
[1724765788363,0.86268152,155.08,154.98,66.61549168]
[1724765788576,0.86268152,155.08,155.01,0.12549]
[1724765788777,0.86268152,155.08,155.01,66.66627288]
[1724765789085,0.86268152,155.08,155.02,0.12549]
[1724765789286,16.12444693,155.12,155.03,48.11296028]
[1724765789497,6.90868152,155.14,155.05,0.12549]
[1724765789664,6.90868152,155.14,155.05,1.66596388]
[1724765790175,6.90868152,155.14,155.06,0.12549]
[1724765790383,15.1088,155.16,155.07,0.12549]
[1724765790384,0.86268152,155.15,155.07,0.12549]
[1724765790688,0.86268152,155.15,155.07,65.37647]
[1724765790903,15.97148152,155.16,155.09,0.12549]
[1724765791069,0.86268152,155.15,155.09,0.50196]
[1724765791686,15.1088,155.16,155.1,1.28921311]
[1724765791870,0.86268152,155.15,155.11,0.50196]
[1724765792070,0.86268152,155.15,155.12,0.25098]
[1724765792287,0.86268152,155.17,155.1,0.12549]
[1724765792489,0.86268152,155.17,155.1,0.50196]
[1724765793590,0.86268152,155.19,155.12,0.12549]
[1724765793791,0.86268152,155.19,155.12,48.48943028]
[1724765794091,0.86268152,155.19,155.14,0.12549]
[1724765794299,0.86268152,155.19,155.14,1.66542387]
[1724765795197,7.30638152,155.19,155.14,0.25098]
[1724765795373,7.30638152,155.19,155.14,0.12549]
[1724765795374,7.30668152,155.19,155.14,0.12549]
[1724765795574,7.30638152,155.19,155.14,0.12549]
[1724765796492,0.86268152,155.19,155.14,0.12549]
[1724765797390,0.86268152,155.19,155.13,45.0]
[1724765798684,7.30668152,155.19,155.13,45.0]
[1724765799100,6.4441,155.18,155.13,45.0]
[1724765799295,7.30758152,155.17,155.08,6.4013]
[1724765799501,0.86268152,155.17,155.09,21.28930709]
[1724765799705,0.86268152,155.18,155.09,69.27677737]
[1724765800201,0.86268152,155.17,155.09,67.98747028]
[1724765800702,0.86268152,155.17,155.1,45.50196]
[1724765800909,0.86268152,155.17,155.12,0.12549]
[1724765801081,0.86268152,155.18,155.12,45.50196]
[1724765801405,0.86268152,155.17,155.12,45.50196]
[1724765801813,6.4438,155.19,155.12,45.50196]
[1724765802501,22.8626,155.2,155.13,1.28908958]
[1724765802701,6.0805,155.22,155.15,0.12549]
[1724765802904,0.86268152,155.21,155.15,1.53977156]
[1724765803083,397.8743,155.24,155.17,0.12549]
[1724765803304,0.86268152,155.23,155.17,1.53949648]
[1724765803487,0.86268152,155.24,155.18,0.25098]
[1724765803689,7.30428152,155.24,155.18,45.25098]
[1724765804302,0.86268152,155.24,155.18,46.53964664]
[1724765804504,0.86268152,155.25,155.18,46.53964664]
[1724765804893,0.86268152,155.25,155.19,0.12549]
[1724765805093,0.86268152,155.25,155.19,1.53939526]
[1724765805289,0.86268152,155.25,155.2,0.25098]
[1724765805502,15.6743,155.28,155.2,45.25098]
[1724765805814,1.98462846,155.27,155.2,45.25098]
[1724765806005,1.98462846,155.27,155.19,20.12549]
[1724765806006,0.86268152,155.26,155.12,54.09707028]
[1724765806198,6.442,155.24,155.13,65.50196]
[1724765806397,0.86268152,155.23,155.13,65.50196]
[1724765806600,6.4417,155.24,155.13,65.50196]
[1724765806799,0.86268152,155.23,155.13,65.50196]
[1724765807116,0.86268152,155.23,155.13,20.0]
[1724765807704,0.86268152,155.22,155.14,1.28884024]
[1724765807908,0.86268152,155.22,155.13,20.0]
[1724765808511,20.0,155.25,155.13,20.0]
[1724765808695,6.443,155.21,155.14,0.25098]
[1724765809013,0.86268152,155.2,155.14,0.25098]
[1724765809324,0.86268152,155.2,155.14,1.53986108]
[1724765809999,0.86268152,155.2,155.14,0.25098]
[1724765810317,6.442,155.24,155.14,41.47975442]
[1724765810612,6.4429,155.21,155.15,20.25098]
[1724765810805,6.4429,155.21,155.16,45.12549]
[1724765810806,0.86268152,155.2,155.16,45.12549]
[1724765811007,0.86268152,155.2,155.16,45.0]
[1724765811699,0.86268152,155.2,155.13,20.0]
[1724765812020,0.86268152,155.2,155.14,1.28900599]
[1724765812321,6.4439,155.19,155.13,21.28900606]
[1724765812519,6.4445,155.17,155.12,6.1096]
[1724765812729,0.86268152,155.16,155.08,46.12449572]
[1724765813619,0.86268152,155.17,155.09,0.25098]
[1724765813809,0.86268152,155.17,155.09,20.25098]
[1724765814599,0.86268152,155.18,155.11,0.12549]
[1724765814799,0.86268152,155.18,155.11,21.79092873]
[1724765815014,0.86268152,155.18,155.12,45.0]
[1724765815214,0.86268152,155.19,155.13,1.41445829]
[1724765815409,0.86268152,155.19,155.14,0.25098]
[1724765815702,7.30638152,155.19,155.14,1.41440417]
[1724765815904,0.86268152,155.18,155.14,0.12549]
[1724765816226,0.86268152,155.18,155.13,0.50196]
[1724765816416,6.4451,155.16,155.11,20.0]
[1724765816619,0.86268152,155.15,155.04,46.58659572]
[1724765817011,0.86268152,155.15,155.04,6.6467]
[1724765818122,0.86268152,155.15,155.05,1.28951525]
[1724765818505,6.446,155.14,155.05,20.0]
[1724765818708,7.30898152,155.13,155.05,20.0]
[1724765819206,7.30898152,155.13,155.06,1.28957981]
[1724765819410,0.86268152,155.15,155.07,0.12549]
[1724765819710,0.86268152,155.15,155.07,20.50196]
[1724765819908,0.86268152,155.15,155.08,46.28938782]
[1724765820132,0.86268152,155.15,155.09,0.25098]
[1724765820296,0.86268152,155.15,155.1,0.12549]
[1724765820498,7.30768152,155.16,155.1,45.12549]
[1724765820711,0.86268152,155.16,155.11,0.25098]
[1724765820921,56.04719572,155.21,155.11,0.25098]
[1724765820922,20.86268152,155.18,155.11,1.5402594]
[1724765821120,0.86268152,155.17,155.11,1.5402594]
[1724765821308,0.86268152,155.17,155.11,0.25098]
[1724765822126,0.86268152,155.18,155.12,0.25098]
[1724765822311,0.86268152,155.18,155.13,0.25098]
[1724765823024,0.86268152,155.17,155.12,45.0]
[1724765823213,6.4442,155.18,155.12,45.0]
[1724765824101,6.0235,155.23,155.13,0.37647]
[1724765824308,27.30548152,155.22,155.15,0.12549]
[1724765824527,20.86268152,155.22,155.15,0.25098]
[1724765824821,39.93989572,155.21,155.11,0.12549]
[1724765825028,6.4441,155.18,155.1,0.12549]
[1724765825197,0.86268152,155.19,155.1,41.48006016]
[1724765825401,0.86268152,155.21,155.12,0.12549]
[1724765825602,0.86268152,155.2,155.12,41.47976167]
[1724765825814,0.86268152,155.2,155.14,0.12549]
[1724765826018,0.86268152,155.2,155.14,0.37647]
[1724765826213,7.30608152,155.2,155.14,0.37647]
[1724765826422,6.4437,155.19,155.14,45.25098]
[1724765826723,0.86268152,155.18,155.14,45.25098]
[1724765826931,0.86268152,155.17,155.14,45.25098]
[1724765827429,6.4438,155.19,155.14,45.25098]
[1724765828002,6.4433,155.2,155.14,45.25098]
[1724765828528,0.86268152,155.19,155.14,45.25098]
[1724765828902,0.86268152,155.19,155.15,1.28901885]
[1724765829102,0.86268152,155.19,155.16,0.12549]
[1724765829305,0.86268152,155.2,155.16,0.12549]
[1724765829930,0.86268152,155.2,155.15,0.25098]
[1724765830128,7.30598152,155.2,155.15,0.12549]
[1724765830807,7.30598152,155.2,155.13,20.12549]
[1724765830808,0.86268152,155.2,155.13,20.0]
[1724765831009,6.4441,155.18,155.11,20.0]
[1724765831228,0.86268152,155.17,155.09,20.0]
[1724765831807,6.4436,155.2,155.1,41.22900069]
[1724765832027,0.86268152,155.19,155.11,20.0]
[1724765832222,0.86268152,155.19,155.13,0.12549]
[1724765832527,0.86268152,155.19,155.13,20.37647]
[1724765832722,6.4454,155.15,155.06,39.93989572]
[1724765832921,6.4454,155.15,155.04,6.7298193]
[1724765832922,20.86268152,155.14,155.04,6.7298193]
[1724765833234,27.30848152,155.14,155.05,1.28952272]
[1724765833408,0.86268152,155.14,155.04,39.93989572]
[1724765833614,0.86268152,155.14,155.05,1.61497525]
[1724765833814,6.4465,155.13,155.05,1.61497525]
[1724765834020,0.86268152,155.12,155.06,1.28951862]
[1724765834216,7.30858152,155.14,155.06,1.28951862]
[1724765834430,0.86268152,155.14,155.06,1.28951862]
[1724765834931,0.86268152,155.14,155.06,1.61496557]
[1724765835106,7.30848152,155.14,155.07,0.12549]
[1724765835307,7.30848152,155.14,155.08,0.12549]
[1724765835512,6.4465,155.13,155.07,20.12549]
[1724765835710,0.86268152,155.12,155.08,45.0]
[1724765835958,0.86268152,155.12,155.02,55.24609572]
[1724765835959,7.30948152,155.12,155.02,55.24609572]
[1724765836103,7.30948152,155.12,155.04,2.90711091]
[1724765836310,0.86268152,155.12,155.05,1.61506162]
[1724765836615,0.86268152,155.12,155.06,1.28956887]
[1724765836812,7.30928152,155.12,155.05,1.6150596]
[1724765837008,7.30928152,155.12,155.04,2.90710728]
[1724765837212,7.30928152,155.12,155.03,12.65436568]
[1724765837213,7.30928152,155.12,155.06,0.12549]
[1724765837414,0.86268152,155.13,155.06,1.54057892]
[1724765837620,6.4466,155.12,155.06,0.25098]
[1724765837821,0.86268152,155.11,155.06,0.25098]
[1724765838008,6.5842,155.14,155.06,0.25098]
[1724765838213,6.5842,155.14,155.07,0.25098]
[1724765838408,6.4467,155.12,155.06,20.0]
[1724765838617,46.52409572,155.14,155.04,20.0]
[1724765838807,20.0,155.13,155.04,20.0]
[1724765839009,6.4471,155.11,155.02,2.90755812]
[1724765839209,0.86268152,155.1,155.02,20.0]
[1724765839414,7.31028152,155.1,155.02,20.0]
[1724765839831,7.31028152,155.1,155.02,0.12549]
[1724765840006,7.31028152,155.1,155.02,0.25098]
[1724765840207,0.86268152,155.09,155.02,0.25098]
[1724765840607,0.86268152,155.09,155.01,20.0]
[1724765840608,0.86268152,155.09,155.01,1.28979031]
[1724765840808,22.5992,155.07,154.99,2.90769851]
[1724765841005,0.86268152,155.06,154.99,1.61538806]
[1724765841321,7.31188152,155.06,154.99,1.61538806]
[1724765841518,7.31188152,155.06,154.98,39.93989572]
[1724765841938,6.94338152,155.06,154.96,46.67083265]
[1724765842111,6.94338152,155.06,154.95,6.011]
[1724765842305,6.94338152,155.06,154.96,1.29037415]
[1724765842633,6.4499,155.05,154.95,8.91947459]
[1724765842835,0.86268152,155.04,154.95,2.9061055]
[1724765843006,0.86268152,155.04,154.95,1.29053219]
[1724765843319,6.4512,155.01,154.93,1.61593216]
[1724765843515,0.86268152,155.04,154.9,39.93989572]
[1724765843516,7.31428152,155.0,154.9,39.93989572]
[1724765843723,7.31428152,155.0,154.91,1.61614926]
[1724765844431,7.31428152,155.0,154.9,46.67319296]
[1724765844432,23.13308152,154.99,154.9,46.67319296]
[1724765844642,23.13308152,154.99,154.9,39.93989572]
[1724765844844,46.14759572,154.98,154.87,0.8257271]
[1724765845014,6.454,154.95,154.87,0.8257271]
[1724765845332,0.86268152,154.94,154.87,0.8257271]
[1724765846413,0.86268152,154.93,154.87,0.8257271]
[1724765846738,403.06268152,154.97,154.87,0.8257271]
[1724765846912,6.4546,154.93,154.87,0.8257271]
[1724765847116,0.86268152,154.92,154.87,0.8257271]
[1724765847318,7.31758152,154.92,154.87,0.8257271]
[1724765847513,0.86268152,154.92,154.87,0.8257271]
[1724765847824,20.0,154.95,154.87,0.8257271]
[1724765848012,6.4541,154.94,154.87,0.8257271]
[1724765848719,0.86268152,154.93,154.88,0.12549]
[1724765848926,0.86268152,154.94,154.88,1.54209581]
[1724765849131,0.86268152,154.94,154.88,0.25098]
[1724765849315,0.86268152,154.94,154.88,20.12549]
[1724765849630,0.86268152,154.94,154.88,20.0]
[1724765850039,0.86268152,154.95,154.87,0.8257271]
[1724765850213,20.86268152,154.95,154.87,0.8257271]
[1724765851424,27.31668152,154.95,154.87,2.11703547]
[1724765851743,27.31668152,154.95,154.89,0.12549]
[1724765851744,0.86268152,154.95,154.89,0.12549]
[1724765851924,0.86268152,154.95,154.9,39.93989572]
[1724765852129,0.86268152,154.95,154.91,0.25098]
[1724765852321,0.86268152,154.95,154.91,45.25098]
[1724765852626,0.86268152,154.98,154.93,0.12549]
[1724765852832,0.86268152,154.98,154.93,46.66715679]
[1724765853143,0.86268152,154.98,154.93,45.25098]
[1724765853644,6.4529,154.97,154.88,40.06538572]
[1724765853843,0.86268152,154.96,154.89,65.37647]
[1724765854023,7.31608152,154.96,154.89,65.25098]
[1724765854219,6.4537,154.95,154.89,20.0]
[1724765854429,0.86268152,154.94,154.89,20.0]
[1724765854669,0.86268152,154.94,154.87,2.11680074]
[1724765854818,0.86268152,154.94,154.88,0.25098]
[1724765855032,422.13989572,154.99,154.89,0.25098]
[1724765855033,20.86268152,154.98,154.89,0.25098]
[1724765855238,20.86268152,154.98,154.9,0.25098]
[1724765855438,27.31538152,154.98,154.9,1.54191315]
[1724765855620,6.453,154.97,154.9,0.25098]
[1724765855832,0.86268152,154.96,154.9,0.25098]
[1724765857238,6.1425,154.95,154.88,20.0]
[1724765857442,0.86268152,154.94,154.87,0.8257271]
[1724765858246,0.86268152,154.95,154.88,39.93989572]
[1724765858452,0.86268152,154.97,154.9,39.93989572]
[1724765858661,16.3763,155.0,154.94,39.93989572]
[1724765858848,0.86268152,154.99,154.95,46.54151897]
[1724765859727,16.3763,155.0,154.95,46.54154065]
[1724765859932,6.4507,155.02,154.95,46.54154065]
[1724765859933,0.86268152,155.02,154.97,0.12549]
[1724765860144,6.6404,155.03,154.95,45.25098]
[1724765860356,0.86268152,155.02,154.96,20.0]
[1724765860554,0.86268152,155.01,154.96,20.0]
[1724765860858,6.452,154.99,154.92,39.93989572]
[1724765861056,6.6404,155.03,154.93,20.0]
[1724765861057,0.86268152,154.98,154.93,20.0]
[1724765861259,7.31508152,154.98,154.91,20.0]
[1724765861429,0.86268152,154.98,154.92,1.29094014]
[1724765861635,0.86268152,154.98,154.88,39.93989572]
[1724765861933,0.86268152,154.97,154.88,39.93989572]
[1724765862134,0.86268152,154.99,154.88,39.93989572]
[1724765862431,0.86268152,154.98,154.88,39.93989572]
[1724765862633,0.86268152,154.98,154.89,20.12549]
[1724765862850,0.86268152,154.98,154.9,45.25098]
[1724765863052,7.31518152,154.98,154.91,20.12549]
[1724765863258,6.4536,154.96,154.89,20.0]
[1724765863443,0.86268152,154.95,154.89,20.0]
[1724765863644,0.86268152,154.95,154.85,6.14]
[1724765863645,7.31628152,154.95,154.85,6.14]
[1724765864334,0.86268152,154.95,154.88,1.29118442]
[1724765864547,0.86268152,154.96,154.88,1.29118442]
[1724765864754,0.86268152,154.96,154.88,39.93989572]
[1724765864959,0.86268152,154.96,154.89,20.0]
[1724765865144,0.86268152,154.96,154.9,86.73266607]
[1724765865346,15.9526,154.97,154.92,0.12549]
[1724765868062,7.31388152,155.01,154.93,20.50196]
[1724765868254,7.31388152,155.01,154.94,45.0]
[1724765868561,7.31388152,155.01,154.95,0.25098]
[1724765868945,0.86268152,155.01,154.95,0.25098]
[1724765869840,7.31398152,155.01,154.95,0.25098]
[1724765870444,0.86268152,155.01,154.95,0.25098]
[1724765870756,7.31388152,155.01,154.95,0.25098]
[1724765870964,0.86268152,155.01,154.95,0.25098]
[1724765871667,0.86268152,155.01,154.96,0.12549]
[1724765871857,15.162,155.02,154.96,41.48128656]
[1724765872065,15.162,155.02,154.97,45.25098]
[1724765872255,0.86268152,155.04,154.98,1.29032443]
[1724765872760,15.0469,155.06,154.99,0.25098]
[1724765872961,15.0469,155.06,155.0,39.93989572]
[1724765873271,15.4206,155.1,155.01,66.54103068]
[1724765873563,21.868,155.1,155.02,41.22985587]
[1724765873865,15.4206,155.1,155.04,39.93989572]
[1724765874085,0.86268152,155.1,155.05,1.66616348]
[1724765874374,0.86268152,155.1,155.05,0.25098]
[1724765874945,0.86268152,155.12,155.05,0.25098]
[1724765875259,20.86268152,155.12,155.04,0.25098]
[1724765875562,20.86268152,155.12,155.04,45.25098]
[1724765876173,6.4473,155.11,155.04,45.25098]
[1724765876480,6.4479,155.09,155.03,20.0]
[1724765876783,0.86268152,155.08,155.01,20.0]
[1724765876975,6.4498,155.05,154.96,39.93989572]
[1724765877145,0.86268152,155.04,154.96,39.93989572]
[1724765878162,0.86268152,155.05,154.96,39.93989572]
[1724765878367,0.86268152,155.05,154.97,1.29023601]
[1724765878755,6.4499,155.04,154.96,39.93989572]
[1724765878961,0.86268152,155.03,154.96,39.93989572]
[1724765879876,0.86268152,155.03,154.95,6.2583]
[1724765880062,0.86268152,155.03,154.97,0.12549]
[1724765880374,0.86268152,155.03,154.96,20.0]
[1724765880672,0.86268152,155.02,154.96,21.29049111]
[1724765880845,0.86268152,155.04,154.96,21.29049111]
[1724765881050,7.31298152,155.04,154.95,20.12549]
[1724765881250,0.86268152,155.04,154.96,0.12549]
[1724765881448,0.86268152,155.04,154.95,20.0]
[1724765881650,0.86268152,155.04,154.96,0.12549]
[1724765882059,7.31258152,155.04,154.96,1.54152342]
[1724765882373,7.31258152,155.04,154.96,0.25098]
[1724765882674,6.4504,155.03,154.96,0.12549]
[1724765882876,0.86268152,155.02,154.96,0.25098]
[1724765883070,0.86268152,155.02,154.92,39.93989572]
[1724765883379,6.4516,155.0,154.9,39.93989572]
[1724765883560,0.86268152,154.99,154.9,39.93989572]
[1724765883772,0.86268152,154.98,154.89,6.72390692]
[1724765884073,6.4533,154.96,154.89,6.72390692]
[1724765884275,0.86268152,154.95,154.87,3.73559445]
[1724765884473,0.86268152,154.95,154.87,3.73559512]
[1724765884975,0.86268152,154.95,154.87,2.44231978]
[1724765885580,0.86268152,154.95,154.87,3.73564362]
[1724765885757,0.86268152,154.95,154.88,40.06538572]
[1724765886279,0.86268152,154.95,154.89,45.12549]
[1724765886455,7.31628152,154.95,154.87,0.8257271]
[1724765886649,0.86268152,154.94,154.87,22.44243204]
[1724765886879,0.86268152,154.94,154.88,0.12549]
[1724765887555,7.31648152,154.95,154.87,22.11685271]
[1724765888267,0.86268152,154.95,154.87,22.11685271]
[1724765888482,6.4549,154.93,154.87,0.8257271]
[1724765888703,7.31768152,154.92,154.87,0.8257271]
[1724765888988,6.4562,154.89,154.87,0.8257271]
[1724765889163,0.86268152,154.88,154.87,0.8257271]
[1724765891467,0.86268152,154.89,154.87,0.8257271]
[1724765894694,422.13989572,154.96,154.87,0.8257271]
[1724765894695,21.5725,154.94,154.87,0.8257271]
[1724765894868,0.86268152,154.93,154.88,0.25098]
[1724765895259,16.24266484,154.94,154.81,6.72353469]
[1724765895260,20.0,154.87,154.81,6.72353469]
[1724765895459,6.4988,154.81,154.67,6.29699832]
[1724765895678,6.4988,154.81,154.65,39.93989572]
[1724765895679,6.462,154.75,154.66,10.29287052]
[1724765896009,0.86268152,154.74,154.66,8.99997338]
[1724765896298,0.86268152,154.74,154.66,6.29699832]
[1724765896496,0.86268152,154.74,154.65,39.93989572]
[1724765896678,0.86268152,154.74,154.67,39.93989572]
[1724765896879,27.32428152,154.76,154.67,39.93989572]
[1724765897278,27.32428152,154.76,154.66,20.0]
[1724765897279,6.462,154.75,154.66,20.0]
[1724765897492,0.86268152,154.74,154.66,20.0]
[1724765897693,0.86268152,154.74,154.67,39.93989572]
[1724765898272,0.86268152,154.73,154.62,6.1615]
[1724765898477,0.86268152,154.73,154.64,39.93989572]
[1724765898677,0.12549,154.76,154.64,39.93989572]
[1724765898978,45.25098,154.76,154.64,39.93989572]
[1724765899191,20.0,154.75,154.64,39.93989572]
[1724765899725,0.86268152,154.74,154.66,39.93989572]
[1724765900091,0.86268152,154.74,154.65,20.0]
[1724765900690,0.86268152,154.74,154.66,39.93989572]
[1724765900896,0.86268152,154.76,154.66,41.23280642]
[1724765901096,0.86268152,154.76,154.68,39.93989572]
[1724765901299,0.86268152,154.76,154.7,39.93989572]
[1724765901596,0.86268152,154.8,154.72,0.25098]
[1724765901779,0.86268152,154.79,154.73,0.12549]
[1724765902204,0.86268152,154.79,154.73,45.12549]
[1724765902396,0.86268152,154.79,154.74,0.25098]
[1724765902995,0.86268152,154.79,154.72,20.0]
[1724765903195,0.86268152,154.79,154.71,20.8257271]
[1724765903502,40.80257724,154.79,154.71,0.8257271]
[1724765903712,6.4612,154.77,154.71,0.8257271]
[1724765904004,0.86268152,154.76,154.71,0.8257271]
[1724765905106,6.462,154.75,154.71,0.8257271]
[1724765905288,0.86268152,154.74,154.71,0.8257271]
[1724765905495,6.4616,154.76,154.71,0.8257271]
[1724765905496,0.86268152,154.73,154.71,0.8257271]
[1724765906485,0.86268152,154.72,154.71,0.8257271]
[1724765906679,6.4629,154.73,154.71,0.8257271]
[1724765907008,0.86268152,154.72,154.71,0.8257271]
[1724765909803,7.32588152,154.72,154.71,0.8257271]
[1724765910112,7.45137152,154.72,154.71,0.8257271]
[1724765910351,52.45137152,154.72,154.71,0.8257271]
[1724765910790,72.45137152,154.72,154.71,0.8257271]
[1724765911385,72.45137152,154.72,154.56,41.12248574]
[1724765911386,79.24266152,154.72,154.58,46.18879572]
[1724765911613,6.4657,154.67,154.58,6.2489]
[1724765911796,7.32848152,154.66,154.58,6.2489]
[1724765912111,7.32848152,154.66,154.56,1.18259002]
[1724765912112,6.4672,154.63,154.56,1.18259002]
[1724765912451,0.86268152,154.62,154.56,1.18259002]
[1724765912713,46.48986572,154.61,154.56,1.18259002]
[1724765912898,6.4687,154.59,154.56,1.18259002]
[1724765913087,0.12549,154.57,154.45,4.40988]
[1724765913286,6.4727,154.5,154.45,4.40988]
[1724765913488,0.86268152,154.49,154.45,4.40988]
[1724765913709,39.93989572,154.54,154.45,4.40988]
[1724765913710,0.86268152,154.48,154.45,4.40988]
[1724765914699,0.37647,154.47,154.45,4.40988]
[1724765914913,0.86268152,154.46,154.45,4.40988]
[1724765915585,1.11366152,154.46,154.45,4.40988]
[1724765915799,0.98817152,154.46,154.45,4.40988]
[1724765916318,0.86268152,154.48,154.45,4.40988]
[1724765917384,0.86268152,154.47,154.45,4.40988]
[1724765917591,0.86268152,154.46,154.45,4.40988]
[1724765917813,0.86268152,154.51,154.45,4.40988]
[1724765918215,0.86268152,154.58,154.47,48.3884761]
[1724765918704,0.86268152,154.58,154.5,48.3884761]
[1724765918897,0.86268152,154.63,154.54,0.12549]
[1724765919201,0.86268152,154.66,154.54,65.50196]
[1724765919725,0.86268152,154.66,154.54,66.79582667]
[1724765919932,0.86268152,154.66,154.56,0.12549]
[1724765920256,6.3474,154.69,154.56,0.12549]
[1724765920257,0.86268152,154.65,154.56,50.18412169]
[1724765920531,15.484,154.73,154.58,0.12549]
[1724765920532,0.86268152,154.69,154.58,0.12549]
[1724765920732,0.86268152,154.69,154.6,0.12549]
[1724765920908,0.86268152,154.68,154.6,65.50196]
[1724765921107,0.86268152,154.75,154.6,65.50196]
[1724765922110,20.86268152,154.75,154.6,65.50196]
[1724765922318,48.3884761,154.73,154.6,20.12549]
[1724765922625,20.86268152,154.72,154.6,20.0]
[1724765922815,40.86268152,154.72,154.6,20.0]
[1724765923122,48.3884761,154.7,154.58,20.0]
[1724765923424,0.12549,154.68,154.58,20.0]
[1724765923610,0.86268152,154.67,154.59,0.25098]
[1724765924010,0.86268152,154.67,154.59,48.6394561]
[1724765924212,0.86268152,154.67,154.6,20.0]
[1724765924411,0.98817152,154.71,154.61,0.12549]
[1724765924610,0.86268152,154.71,154.61,0.25098]
[1724765924811,0.86268152,154.71,154.62,48.5139661]
[1724765925108,0.86268152,154.75,154.63,21.54422159]
[1724765925513,0.86268152,154.75,154.65,48.3884761]
[1724765925718,0.86268152,154.75,154.66,20.25098]
[1724765925923,0.86268152,154.75,154.66,21.5439189]
[1724765926138,68.3884761,154.8,154.66,21.5439189]
[1724765926139,0.86268152,154.74,154.66,21.5439189]
[1724765926307,0.86268152,154.79,154.68,48.3884761]
[1724765927621,0.12549,154.78,154.68,48.3884761]
[1724765927803,0.86268152,154.77,154.67,0.12549]
[1724765928000,0.86268152,154.77,154.67,45.25098]
[1724765928208,0.86268152,154.77,154.68,20.25098]
[1724765928433,0.86268152,154.8,154.68,21.5437825]
[1724765928615,0.86268152,154.79,154.68,21.5437825]
[1724765929027,0.86268152,154.79,154.69,1.2927347]
[1724765929231,0.86268152,154.79,154.68,20.25098]
[1724765929527,0.86268152,154.78,154.69,0.25098]
[1724765929720,266.3591,154.82,154.7,48.6394561]
[1724765929721,0.86268152,154.81,154.7,48.6394561]
[1724765929914,0.86268152,154.81,154.71,21.29249631]
[1724765930111,0.86268152,154.81,154.72,45.25098]
[1724765930318,0.86268152,154.81,154.73,20.0]
[1724765930708,7.32228152,154.81,154.71,6.2698]
[1724765930935,6.46,154.8,154.71,6.2698]
[1724765931119,0.86268152,154.79,154.72,20.0]
[1724765931430,0.86268152,154.79,154.68,63.6892761]
[1724765931431,0.86268152,154.79,154.68,15.3008]
[1724765931633,0.25098,154.78,154.66,6.2698]
[1724765931933,0.12549,154.76,154.66,6.2698]
[1724765932238,66.11366152,154.76,154.66,6.2698]
[1724765932419,6.4621,154.75,154.66,6.2698]